[Event "1st Sales Oliveira Masters 2022"]
[Site "Sales Oliveira"]
[Date "2022.06.12"]
[Round "9.3"]
[White "Coro, Lucas"]
[Black "Lima, Darcy"]
[Result "1/2-1/2"]
[ECO "C65"]
[WhiteElo "2398"]
[BlackElo "2488"]
[Annotator "TA"]
[PlyCount "68"]
[EventDate "2022.05.30"]
[EventType "swiss"]
[EventCountry "BRA"]
[SourceTitle "playchess.com"]
[Source "ChessBase"]
[SourceQuality "1"]
[TimeControl "40/5400+30:1800+30"]

{[%evp 9,68,15,4,6,18,8,22,22,24,12,25,19,30,27,28,22,31,0,19,0,0,0,0,0,38,21,26,30,62,0,16,11,1,-31,-1,-4,0,0,9,7,10,0,16,0,8,25,29,30,43,29,37,37,27,0,0,-16,-23,-40,-31,-52,-52]} 1. e4 {[%emt 0:00:05]} e5 {[%emt 0:00:42]} 2. Nf3 {[%emt 0:00:10]} Nc6 {[%emt 0:00:08]} 3. Bb5 {[%emt 0:00:37]} Nf6 {[%emt 0:00:26]} 4. d3 {[%emt 0:00:30]} Bc5 {[%emt 0:00:56]} 5. Ba4 {[%emt 0:01:05]} O-O {[%emt 0:01:25]} 6. O-O {[%emt 0:00:23] C65: Ruy Lopez: Berlin Defence (3...Nf6), unusual lines and 4 0-0 Bc5.} d6 {[%emt 0:05:44]} 7. c3 {[%emt 0:01:00]} Bd7 {[%emt 0:03:54]} 8. Re1 {[%emt 0:03:10] The position is equal.} a6 {[%emt 0:16:05]} 9. h3 {[%emt 1:28:00]} Ba7 {[%emt 1:05:40]} 10. Nbd2 {[%emt 0:00:30][%cal Bb1d2,Bd2f1,Bf1e3,Be3f5][%mdl 32]} Ne7 {[%emt 0:00:00]} 11. Bb3 {[%emt 0:00:00]} Ng6 {[%emt 0:00:00][%cal Od7h3]} 12. Nf1 {[%emt 0:00:00] [#]} Nh5 $146 {[%emt 0:00:00]} ({Predecessor:} 12... Re8 13. Ng5 Re7 14. Ng3 h6 15. Nf3 c6 16. Nh2 Re8 17. Qf3 Nh4 18. Qe2 Ng6 {0-1 (56) Predke,A (2533)-Shimanov,A (2606) Kazan 2015}) 13. Be3 {[%emt 0:00:00]} Nhf4 {[%emt 0:00:00]} 14. Bxa7 {[%emt 0:00:00]} Rxa7 {[%emt 0:00:00]} 15. Ne3 {[%emt 0:00:00]} Ra8 {[%emt 0:00:00]} 16. d4 {[%emt 0:00:00]} Bc6 {[%emt 0:00:00]} 17. Nf5 {[%emt 0:00:00]} Qf6 {[%emt 0:00:00][%cal Oc6e4]} 18. Bc2 {[%emt 0:00:00]} Rad8 {[%emt 0:00:00]} 19. Qd2 {[%emt 0:00:00]} (19. h4 $1 $14) 19... Ne7 $11 {[%emt 0:00:00]} 20. Nxe7+ {[%emt 0:00:00]} Qxe7 {[%emt 0:00:00]} 21. Re3 {[%emt 0:00:00]} Rfe8 {[%emt 0:00:00]} (21... f5 $5 {[%cal Rf5e4]}) 22. Kh2 {[%emt 0:00:00]} Bd7 {[%emt 0:00:00]} 23. Rd1 {[%emt 0:00:00]} Bc8 {[%emt 0:00:00]} 24. b4 {[%emt 0:00:00]} b6 {[%emt 0:00:00]} 25. a4 {[%emt 0:00:00]} Qf6 {[%emt 0:00:00]} 26. Qe1 {[%emt 0:00:00]} Qg6 {[%emt 0:00:00][%csl Gf4][%cal Rg6g2] [#]} 27. Qf1 {[%emt 0:08:30]} Qh5 {[%emt 0:09:00]} 28. Ng1 {[%emt 0:00:30]} exd4 {[%emt 0:00:00]} 29. cxd4 {[%emt 0:00:00]} c5 {[%emt 0:00:00]} 30. bxc5 bxc5 {[%emt 0:00:00]} 31. d5 {[%emt 0:00:00]} f5 {[%emt 0:00:00]} 32. e5 {[%emt 0:00:00]} dxe5 {[%emt 0:00:00]} 33. Qc4 {[%emt 0:00:00]} Qg6 {[%emt 0:00:00][%csl Gf4][%cal Rg6g2] [#]} 34. g3 {[%emt 0:00:00]} Nh5 {[%emt 0:00:00] Weighted Error Value: White=0.08 (flawless) /Black=0.08 (flawless)} 1/2-1/2

[Event "1st Sales Oliveira Masters 2022"]
[Site "Sales Oliveira"]
[Date "2022.06.12"]
[Round "9.4"]
[White "Labussiere, Victor"]
[Black "Born, Carlos Rodrigo"]
[Result "0-1"]
[ECO "A16"]
[WhiteElo "2349"]
[BlackElo "2292"]
[Annotator "TA"]
[PlyCount "124"]
[EventDate "2022.05.30"]
[EventType "swiss"]
[EventCountry "BRA"]
[SourceTitle "playchess.com"]
[Source "ChessBase"]
[SourceQuality "1"]
[TimeControl "40/5400+30:1800+30"]

{[%evp 13,124,34,35,33,24,9,0,-3,25,0,0,-43,7,0,0,0,-55,-98,-98,-94,-80,-98,-78,-87,-96,-94,-99,-131,-145,-142,-87,-95,-81,-77,0,-7,-15,-16,-29,-100,-70,-84,-89,-112,-110,-120,-120,-121,-120,-125,-109,-121,-119,-141,-52,-190,-182,-283,-304,-308,-322,-416,-417,-377,-211,-397,-149,-326,-326,-326,-326,-326,-326,-326,-326,-419,-413,-420,-421,-362,-383,-375,-230,-432,-289,-362,-352,-328,-312,-260,-64,-214,-74,-524,-402,-581,-565,-539,-375,-5995,-5193,-12014,-12093,-11570,-10920,-11912,-10922,-7262,-7147,-5787,-5240,-4134,-1785]} 1. c4 {[%emt 0:01:19]} Nf6 {[%emt 0:00:04]} 2. Nc3 {[%emt 0:00:06]} g6 {[%emt 0:00:06]} 3. e4 {[%emt 0:00:56]} d6 {[%emt 0:00:02]} 4. g3 {[%emt 0:00:04]} Bg7 {[%emt 0:04:06]} 5. Bg2 {[%emt 0:00:50]} O-O {[%emt 0:03:57]} 6. Nge2 {[%emt 0:00:15]} c6 {[%emt 0:02:43]} 7. O-O {[%emt 0:01:14]} a6 {[%emt 0:00:36]} 8. a4 {[%emt 0:05:14] A16: English Opening: 1...Nf6 with ...d5.} a5 {[%emt 0:00:02]} 9. d3 {[%emt 0:00:32]} Na6 {[%emt 0:00:26]} 10. h3 {[%emt 0:01:59] The position is equal.} Nb4 {[%emt 0:01:51]} 11. f4 {[%emt 0:05:59]} e5 {[%emt 0:00:18]} 12. g4 {[%emt 0:10:16] [#]} Qb6+ $146 {[%emt 0:14:40]} (12... Nd7 $15) ({Predecessor:} 12... Bxg4 13. hxg4 Nxg4 14. Bh3 Qh4 15. Kg2 f5 16. Ng3 exf4 17. Bxf4 Be5 18. exf5 Ne3+ 19. Kh2 Nxd1 20. Bxe5 dxe5 21. Raxd1 g5 {0-1 (21) Bellon Lopez,J (2490)-Brito Garcia,A (2360) Las Palmas 1995}) 13. Kh1 {[%emt 0:03:35]} Bxg4 {[%emt 0:01:49]} 14. hxg4 $15 {[%emt 0:05:00]} Nxg4 {[%emt 0:00:16]} 15. Qd2 {[%emt 0:10:22]} Nf2+ {[%emt 0:02:10]} 16. Kh2 {[%emt 0:00:41]} Nbxd3 {[%emt 0:09:12]} 17. Nd1 {[%emt 0:03:08]} Ng4+ {[%emt 0:07:00]} 18. Kg3 {[%emt 0:03:54]} Nxc1 {[%emt 0:00:42] 0x0.001e63dd72f9dp-1022s more active pieces.} 19. Rxc1 {[%emt 0:01:08]} h5 {[%emt 0:00:18]} 20. f5 {[%emt 0:24:52]} Bh6 {[%emt 0:01:02][%mdl 1024] Black has strong compensation.} 21. Qc3 {[%emt 0:00:22]} Qd8 {[%emt 0:01:16] Chess con chili.} (21... Bxc1 $142 22. Qxc1 Kg7) 22. Rc2 $17 {[%emt 0:06:18]} Qg5 {[%emt 0:00:41] ( -> ...Ne3+)} 23. Kh3 {[%emt 0:00:09]} Bg7 {[%emt 0:02:02]} (23... Nf6 24. Qg3 $11) (23... Kh7 $17) 24. Qd2 {[%emt 0:03:27]} Qe7 {[%emt 0:00:09]} 25. Qd3 {[%emt 0:00:22]} Bh6 $40 {[%emt 0:01:42][%mdl 128] Black has some attack.} 26. Rc3 {[%emt 0:00:24]} (26. Rh1 $11 {keeps the balance.}) 26... Nf6 {[%emt 0:06:22]} 27. Nf2 {[%emt 0:02:29]} g5 {[%emt 0:00:42][%cal Bg6g5,Bg5g4][%mdl 32]} 28. Kh2 {[%emt 0:02:22]} g4 {[%emt 0:00:42]} 29. Rh1 {[%emt 0:02:57]} Kg7 {[%emt 0:00:09]} 30. Kg1 {[%emt 0:01:00]} Rh8 {[%emt 0:00:02]} 31. Qd1 {[%emt 0:00:20]} Bg5 {[%emt 0:00:24]} 32. Ng3 {[%emt 0:01:20]} Rag8 {[%emt 0:01:15]} 33. Rd3 {[%emt 0:00:33]} Kf8 {[%emt 0:06:42]} ({Black should try} 33... h4 $17 34. Ne2 h3 35. Bxh3 gxh3 36. Rdxh3 Rxh3 37. Rxh3 Kf8) 34. Ne2 {[%emt 0:01:11]} ({Don't play} 34. Rxd6 h4 35. Ne2 h3 36. Rd8+ Ne8 $19) (34. c5 $1 $15) 34... h4 $19 {[%emt 0:00:40]} 35. Rxd6 {[%emt 0:02:11]} (35. Ra3 {was necessary.}) 35... Be3 {[%emt 0:08:09]} 36. Kf1 {[%emt 0:00:09]} h3 {[%emt 0:02:43]} 37. Ng3 {[%emt 0:00:21]} hxg2+ {[%emt 0:01:53]} 38. Kxg2 {[%emt 0:00:02]} Rxh1 {[%emt 0:00:20]} (38... Bxf2 $142 39. Rd8+ Kg7 40. Rxg8+ Kxg8 41. Rxh8+ Kxh8 42. Kxf2 Qc5+ 43. Kg2 Qe3 44. Qh1+ Kg7) 39. Nfxh1 {[%emt 0:00:33] [#]} (39. Rd8+ {only move.} Ne8 40. Ngxh1) 39... Bd4 $2 {[%emt 0:06:24]} (39... Nd5 $1 $19 {[%mdl 512] and Black stays clearly on top.} 40. Rh6 Bxh6 41. cxd5 Be3 42. dxc6 bxc6) 40. Rxd4 {[%emt 0:00:32]} (40. c5 $17 {was the only defense.}) 40... exd4 {[%emt 0:00:01]} 41. Qxd4 {[%emt 0:30:10]} c5 {[%emt 0:31:31]} 42. Qe3 {[%emt 0:00:16]} Qe5 {[%emt 0:01:35]} 43. Nf2 {[%emt 0:00:03]} Ke7 {[%emt 0:01:49]} ({Less strong is} 43... Qxb2 44. e5 Nd7 45. e6 $16) 44. Nd3 {[%emt 0:02:25]} Qd4 {[%emt 0:00:17]} 45. Qxd4 {[%emt 0:00:32]} cxd4 {[%emt 0:00:01][%mdl 4096] Endgame KRN-KNN} 46. e5 {[%emt 0:00:10]} Nd7 {[%emt 0:00:36]} 47. Ne4 {[%emt 0:00:43]} Rh8 {[%emt 0:00:16] Strongly threatening ...b6.} 48. f6+ $2 {[%emt 0:00:14]} (48. Nef2 {was worth a try.}) 48... Kf8 {[%emt 0:00:19]} 49. Nef2 {[%emt 0:00:45]} Rg8 {[%emt 0:01:10]} 50. Kg3 {[%emt 0:00:18]} b6 {[%emt 0:00:01]} 51. Ne4 {[%emt 0:00:19]} Rh8 $2 {[%emt 0:00:36]} (51... Rg6 $19 {White must now prevent ...Kg8.} 52. Nef2 Rg5) 52. Kxg4 {[%emt 0:00:42]} ({Only move:} 52. Nef2 $1 $15) 52... Rh1 {[%emt 0:00:09]} (52... Rh2 $19 {And now ...Kg8 would win.} 53. b3 Kg8) 53. c5 $2 {[%emt 0:01:02][%mdl 8192]} (53. Nef2 $17 {was the crucial defense.} Ra1 54. Kf5) 53... bxc5 {[%emt 0:00:33] Threatens to win with ...c4.} 54. Nexc5 {[%emt 0:00:05]} (54. b3 $142) 54... Nxc5 {[%emt 0:00:18]} 55. Nxc5 {[%emt 0:00:01] KR-KN} Rc1 {[%emt 0:00:15]} 56. Nb3 {[%emt 0:01:48] [#]} (56. Nd3 Rd1 57. Nc5) 56... d3 $1 {[%emt 0:00:25] Black is clearly winning.} 57. Kf3 {[%emt 0:00:01]} (57. e6 fxe6) 57... Re1 {[%emt 0:00:19]} 58. Nd2 {[%emt 0:00:31]} Rxe5 {[%emt 0:00:07]} 59. Nc4 {[%emt 0:00:28]} Re6 {[%emt 0:00:17]} 60. Nd2 {[%emt 0:00:53]} Kg8 {[%emt 0:00:05]} 61. Nc4 {[%emt 0:00:37]} Kh7 {[%emt 0:00:06]} 62. Nd2 {[%emt 0:00:27]} Kg6 {[%emt 0:00:02] Weighted Error Value: White=0.72/Black=0.39} (62... Kh6 $142 63. Nc4 Kg5) 0-1

[Event "1st Sales Oliveira Masters 2022"]
[Site "Sales Oliveira"]
[Date "2022.06.12"]
[Round "9.5"]
[White "Delgado Ramirez, Neuris"]
[Black "Gemy, Jose Daniel"]
[Result "1/2-1/2"]
[ECO "C67"]
[WhiteElo "2603"]
[BlackElo "2367"]
[Annotator "TA"]
[PlyCount "102"]
[EventDate "2022.05.30"]
[EventType "swiss"]
[EventCountry "BRA"]
[SourceTitle "playchess.com"]
[Source "ChessBase"]
[SourceQuality "1"]
[TimeControl "40/5400+30:1800+30"]

{[%evp 16,102,0,11,4,7,15,0,8,14,33,35,40,15,44,35,70,54,59,62,104,99,122,118,266,178,178,159,171,135,155,80,108,77,80,72,86,85,77,0,0,0,65,55,38,0,0,0,98,83,92,108,71,40,41,45,118,87,166,116,110,0,65,-75,-14,-392,-321,-465,-469,-439,-169,-512,0,-402,0,-318,-305,-316,0,0,0,-357,0,0,0,-343,0,0,0]} 1. e4 {[%emt 0:00:05] Vitiugov,Nikita} e5 {[%emt 0:00:24]} 2. Nf3 {[%emt 0:00:08]} Nc6 {[%emt 0:00:04]} 3. Bb5 {[%emt 0:00:05]} Nf6 {[%emt 0:00:24]} 4. O-O {[%emt 0:01:06]} Nxe4 {[%emt 0:00:05]} 5. d4 {[%emt 0:00:07]} Nd6 {[%emt 0:00:20]} 6. dxe5 {[%emt 0:00:08]} Nxb5 {[%emt 0:00:10]} 7. a4 {[%emt 0:00:06][%cal Ba2a4,Ba4a5,Ba5a6][%mdl 32]} Nbd4 {[%emt 0:00:22]} 8. Nxd4 {[%emt 0:00:04]} Nxd4 {[%emt 0:00:03] 8...d5 is the hot move.} 9. Qxd4 {[%emt 0:00:10]} d5 $1 {[%emt 0:00:03] C67: Ruy Lopez: Berlin Defence: 4 0-0 Nxe4.} 10. Qd3 {[%emt 0:00:06]} c6 {[%emt 0:19:33]} 11. a5 {[%emt 0:00:54]} Be6 {[%emt 0:03:46]} 12. Nc3 {[%emt 0:01:39] [#]} Bb4 $146 {[%emt 0:01:07]} ({Predecessor:} 12... Qd7 13. Ne2 Bf5 14. Qc3 Be7 15. Bh6 d4 16. Nxd4 gxh6 17. e6 Bxe6 18. Nxe6 Rg8 {1-0 (30) Vitiugov,N (2726)-Harikrishna,P (2730) Prague 2019 CBM 189 [Vitiugov,Nikita]}) 13. Qg3 {[%emt 0:01:00]} Qc7 {[%emt 0:01:46]} 14. a6 {[%emt 0:11:29]} b6 {[%emt 0:00:47]} (14... O-O {keeps more tension.} 15. Bh6 f6 16. Bf4 Qd7) 15. Ne2 {[%emt 0:00:08]} Be7 {[%emt 0:05:44]} 16. Nd4 {[%emt 0:00:36]} g5 {[%emt 0:01:30]} 17. b4 $36 {[%emt 0:03:39][%mdl 2048] White fights for an advantage.} (17. Bxg5 $6 Rg8 18. f4 (18. Nxe6 fxe6 19. f4 h6 $15) 18... h6 19. Nxe6 fxe6 $11) 17... Bxb4 {[%emt 0:04:28]} 18. Ba3 {[%emt 0:01:18]} (18. Qxg5 Be7 19. Qh5 (19. Nxe6 fxe6 20. Qh5+ Kd7 $14) 19... O-O-O $14) 18... Bxa3 {[%emt 0:07:14]} 19. Rxa3 {[%emt 0:00:14]} Qd7 {[%emt 0:00:23]} (19... c5 $16 20. Nxe6 fxe6) 20. Qxg5 {[%emt 0:00:37]} h6 {[%emt 0:12:09]} 21. Qf6 {[%emt 0:04:34]} Rf8 {[%emt 0:00:09]} 22. f4 {[%emt 0:09:45][%cal Bf2f4,Bf4f5][%mdl 32]} (22. Qxh6 c5 $16) 22... c5 {[%emt 0:01:11]} 23. Ne2 {[%emt 0:03:56]} (23. f5 $142 cxd4 24. Raf3 (24. fxe6 Qxe6 25. Qf2 Rc8 $16)) 23... Qe7 $16 {[%emt 0:05:06]} 24. Qxh6 {[%emt 0:00:09]} O-O-O {[%emt 0:01:04]} 25. f5 {[%emt 0:02:17]} Bd7 {[%emt 0:01:12]} 26. e6 {[%emt 0:00:18]} Bb5 {[%emt 0:05:43]} 27. Re3 {[%emt 0:01:09]} (27. Rf2 $16) 27... d4 $1 $11 {[%emt 0:00:31]} 28. Re4 {[%emt 0:00:08]} Bc6 {[%emt 0:00:44]} (28... fxe6 $1 $11 29. Rxe6 Qd7) 29. Rg4 $14 {[%emt 0:03:31] And now Nf4 would win.} fxe6 {[%emt 0:02:39]} 30. f6 {[%emt 0:01:04]} Qd6 {[%emt 0:00:16]} 31. Ng3 {[%emt 0:02:05]} Qd5 {[%emt 0:04:10]} (31... d3 $11 {remains equal.} 32. cxd3 Qxd3) 32. Rf2 $1 $16 {[%emt 0:03:40] Active counter play!} c4 {[%emt 0:01:19]} 33. Rg5 {[%emt 0:05:28]} Qd6 {[%emt 0:01:11]} 34. f7 {[%emt 0:03:23][%cal Og3f5]} d3 {[%emt 0:04:51]} 35. cxd3 {[%emt 0:00:35]} c3 {[%emt 0:00:08]} ({Black should try} 35... cxd3 $14 36. Nf1 Kc7) 36. Qf6 {[%emt 0:09:29]} e5 {[%emt 0:02:58]} (36... Qxd3 $16 37. Qxe6+ Kc7) 37. Qf5+ {[%emt 0:04:26]} (37. Qxe5 Qxe5 38. Rxe5 Rxd3 $15) (37. Rxe5 $6 Qxf6 38. Rxf6 Kc7 $16) (37. Qxd6 $1 $18 Rxd6 38. Nf5 (38. Rxe5 Rxd3 39. Re1 b5 $15)) 37... Kc7 {[%emt 0:01:54]} 38. Rg4 {[%emt 0:11:48]} (38. Qxe5 Qxe5 39. Rxe5 Rxd3 40. Re7+ Kd8 $15) (38. h4 $16) 38... b5 {[%emt 0:01:06]} (38... Rd7 $11) 39. Qg5 {[%emt 0:04:05]} (39. h3 $1 $14 {stays ahead.} Qe7 40. Ne4) 39... Kb6 $1 $17 {[%emt 0:04:09]} 40. d4 {[%emt 0:06:30][%mdl 8192] Against Qc5} (40. h3 $11 Qc5 41. Ne4 Bxe4 42. Rxe4 Rxd3 43. Ree2) 40... exd4 $19 {[%emt 0:02:22] White must now prevent ...d3.} 41. Ne2 {[%emt 0:30:03]} (41. Ne4 $142 Qb4 42. Qc1) 41... Qc5 $1 {[%emt 0:31:21]} (41... Rh8 42. h4 Qc5 43. Qxc5+ Kxc5 44. Rf5+ (44. Rff4 $2 c2 $19) 44... Rd5 45. Rf6 $11 (45. f8=R $2 Rxf8 46. Rxf8 c2 $19)) 42. Rf5 {[%emt 0:00:03]} Qb4 {[%emt 0:02:24]} (42... Qc4 43. Qe7 c2) 43. Rf6 $2 {[%emt 0:00:53]} (43. Qh6 {nothing else works.} c2 44. Rg6) 43... Qc5 {[%emt 0:01:27] ...Rd5 is the strong threat.} 44. Rf5 {[%emt 0:00:03]} Qb4 {[%emt 0:01:00]} (44... Qc4 $19 45. Qe7 c2) 45. h4 $2 {[%emt 0:01:54][%mdl 8192]} (45. Rf6 $11 c2 46. Rxc6+ Kxc6 47. Qg6+ Rd6 48. Qxc2+ Kb6 49. Qd1 (49. Rf4 $2 Qe1+ 50. Rf1 d3 $19)) 45... c2 $1 {[%emt 0:00:51] Hoping for ...Qe1+.} (45... Kxa6 46. Rc5 Rd6 47. Qe5 $16) 46. Nc1 {[%emt 0:00:34]} Qe1+ $2 {[%emt 0:00:42]} (46... Kxa6 47. Rc5 Rc8 48. Nd3 Qb1+ 49. Kh2 Rxf7 50. Qg6 $18) (46... Rd7 $19 47. Rgf4 Qe1+ 48. Kh2 Qxc1 49. Rxb5+ Kxa6) 47. Kh2 $1 $11 {[%emt 0:00:03] aiming for Rf6.} Qe3 {[%emt 0:00:19] Threatens to win with ...Qxg5.} (47... Kxa6 48. Re5 Qa5 49. Qe7 $18) (47... d3 $5 48. Rf6 d2 $11) 48. Rgf4 $2 {[%emt 0:00:55][%mdl 8192]} Rd6 $2 {[%emt 0:01:26]} (48... Qxc1 49. Rxb5+ $1 Kxa6 50. Ra5+ Kb7 51. Qe7+ Kc8 52. Rf6 Qh1+ 53. Kxh1 $16) (48... Ka5 $1 $19 49. Na2 Bd5 $1 {[%mdl 512]}) 49. Qg7 $1 {[%emt 0:00:27] Dancing on a razor blade.} Rdd8 {[%emt 0:00:39][%mdl 8192]} (49... Rxf7 $11 50. Rxf7 Qxc1) 50. Qg5 $1 $19 {[%emt 0:01:07][%cal Of5f6] [#]} Rd6 $2 {[%emt 0:00:00]} ({Weaker is} 50... Qxc1 {[#]} 51. Rxb5+ $1 Kxa6 52. Ra5+ Kb7 53. Qe7+ Kc8 54. Rf6 Qh1+ 55. Kxh1 $16) ({Better is} 50... Ka5 $1 $19 51. Rf2 Qxg5 52. hxg5 Be4) 51. Qg7 $1 $11 {[%emt 0:00:26]} Rdd8 {[%emt 0:02:46] Never resign too early!  Weighted Error Value: White=0.49/Black=0.56} 1/2-1/2